bitfinex/quotes_SOLUSD_20250413
["timestamp","ask_amount","ask_price","bid_price","bid_amount"]
[1744561432174,14.4895,129.69,129.64,19.06908692]
[1744561432447,19.06908692,129.68,129.63,26.78318692]
[1744561433766,19.06908692,129.68,129.61,7.7154]
[1744561433767,0.42648471,129.68,129.61,7.7154]
[1744561433976,19.49557163,129.68,129.63,19.06908692]
[1744561434665,19.06908692,129.68,129.63,19.06908692]
[1744561434864,19.06908692,129.68,129.61,7.7154]
[1744561435062,19.06908692,129.68,129.63,19.06908692]
[1744561435272,6.7787,129.69,129.64,19.06908692]
[1744561435477,6.7787,129.69,129.65,19.06908692]
[1744561435862,33.55848692,129.69,129.64,26.78218692]
[1744561436478,6.7787,129.69,129.65,19.06908692]
[1744561436772,7.7096,129.71,129.66,19.06908692]
[1744561436975,26.77868692,129.71,129.66,19.06908692]
[1744561437173,19.06908692,129.7,129.65,19.06908692]
[1744561437470,26.77938692,129.7,129.65,19.06908692]
[1744561437678,19.06908692,129.69,129.64,7.7131]
[1744561437880,19.06908692,129.69,129.64,26.78218692]
[1744561438181,19.06908692,129.68,129.63,26.78328692]
[1744561438870,26.35934886,129.71,129.66,19.06908692]
[1744561439078,45.42843578,129.71,129.66,19.06908692]
[1744561439577,45.42843578,129.71,129.66,26.78148692]
[1744561440071,19.06908692,129.7,129.66,7.7124]
[1744561440372,45.42843578,129.71,129.66,26.78148692]
[1744561440571,19.06908692,129.7,129.65,26.78198692]
[1744561441161,19.06908692,129.7,129.65,7.7129]
[1744561441370,19.06908692,129.7,129.62,19.2856]
[1744561441371,19.06908692,129.68,129.63,26.78268692]
[1744561442086,19.06908692,129.68,129.64,19.06908692]
[1744561442453,19.06908692,129.66,129.6,1.5126]
[1744561442663,19.07613357,129.67,129.6,19.06908692]
[1744561442863,45.42522049,129.67,129.62,19.06908692]
[1744561443070,19.06908692,129.66,129.62,19.06908692]
[1744561443266,19.06908692,129.66,129.61,19.06908692]
[1744561443675,19.06908692,129.66,129.62,19.06908692]
[1744561444596,19.06908692,129.66,129.62,26.78388692]
[1744561444902,53.13742049,129.67,129.62,26.78388692]
[1744561445491,6.1858,129.68,129.65,19.06908692]
[1744561445676,9.2333,129.69,129.62,27.0019]
[1744561445981,28.30238692,129.69,129.64,19.06908692]
[1744561446175,1.5224,129.69,129.66,19.06908692]
[1744561446386,1.5224,129.69,129.65,19.06908692]
[1744561446582,1.5224,129.69,129.65,26.78188692]
[1744561446780,28.30218692,129.69,129.61,84.1445]
[1744561447093,9.2331,129.69,129.63,19.06908692]
[1744561447292,28.30218692,129.69,129.64,19.06908692]
[1744561447769,26.78038692,129.68,129.62,7.7148]
[1744561448087,26.78038692,129.68,129.63,19.06908692]
[1744561448492,7.7113,129.68,129.63,19.06908692]
[1744561448689,26.78038692,129.68,129.63,19.06908692]
[1744561449192,7.7113,129.68,129.64,19.06908692]
[1744561449993,7.7113,129.68,129.63,26.78318692]
[1744561450284,26.78038692,129.68,129.63,26.78318692]
[1744561450487,7.7113,129.68,129.63,26.78318692]
[1744561450784,19.06908692,129.65,129.6,26.78508692]
[1744561451364,26.78258692,129.65,129.6,26.78508692]
[1744561452889,7.7135,129.65,129.61,19.06908692]
[1744561453686,26.78258692,129.65,129.6,19.06908692]
[1744561455989,7.7135,129.65,129.61,19.06908692]
[1744561456191,7.7135,129.65,129.59,7.7166]
[1744561456192,1.5224,129.69,129.64,19.06908692]
[1744561456484,96.7082,129.71,129.67,19.06908692]
[1744561456686,115.77728692,129.71,129.61,89.0361]
[1744561456889,115.77728692,129.71,129.66,19.06908692]
[1744561457093,19.06908692,129.7,129.66,19.06908692]
[1744561457294,115.77728692,129.71,129.66,19.06908692]
[1744561457878,115.77728692,129.71,129.65,7.7127]
[1744561458087,19.06908692,129.7,129.65,26.78178692]
[1744561458976,115.77728692,129.71,129.66,19.06908692]
[1744561459296,115.77728692,129.71,129.65,7.7127]
[1744561459497,115.77728692,129.71,129.66,19.06908692]
[1744561460206,115.77728692,129.71,129.66,26.78148692]
[1744561460697,115.77728692,129.71,129.66,19.06908692]
[1744561460903,19.06908692,129.7,129.65,26.78188692]
[1744561461300,115.77728692,129.71,129.66,19.06908692]
[1744561461905,115.77728692,129.71,129.66,26.78148692]
[1744561462500,96.7082,129.71,129.67,19.06908692]
[1744561462701,115.77728692,129.71,129.66,26.78148692]
[1744561463209,19.06908692,129.69,129.65,19.06908692]
[1744561463383,19.06908692,129.69,129.64,19.06908692]
[1744561463802,19.06908692,129.68,129.63,26.78328692]
[1744561464110,19.06908692,129.66,129.61,26.78448692]
[1744561464289,20.58518692,129.67,129.62,19.06908692]
[1744561464485,1.5161,129.67,129.63,19.06908692]
[1744561464688,20.58518692,129.67,129.62,21.71154502]
[1744561465103,28.29708692,129.67,129.62,26.78358692]
[1744561466710,19.06908692,129.66,129.61,26.78428692]
[1744561467096,26.78178692,129.66,129.61,26.78428692]
[1744561467805,7.7127,129.66,129.61,26.78428692]
[1744561468007,7.7127,129.66,129.62,19.06908692]
[1744561468507,28.29728692,129.67,129.62,26.78388692]
[1744561469096,9.2282,129.67,129.62,26.78388692]
[1744561469295,28.29728692,129.67,129.62,26.78388692]
[1744561470415,28.29728692,129.67,129.59,27.0067]
[1744561470714,28.29728692,129.67,129.62,19.06908692]
[1744561470890,28.29728692,129.67,129.61,19.06908692]
[1744561471511,28.29728692,129.67,129.62,2.6485248]
[1744561472111,9.2282,129.67,129.62,2.6485248]
[1744561472413,28.29728692,129.67,129.61,26.78428692]
[1744561472607,9.2282,129.67,129.61,26.78428692]
[1744561472911,28.29728692,129.67,129.61,26.78428692]
[1744561473122,19.06908692,129.65,129.6,26.78498692]
[1744561473408,12.1856253,129.64,129.6,7.7159]
[1744561473587,19.8986253,129.65,129.6,7.7159]
[1744561473796,7.713,129.65,129.61,2.65183541]
[1744561474103,7.713,129.65,129.61,14.83746071]
[1744561474301,7.7127,129.66,129.61,14.83746071]
[1744561474502,19.8983253,129.66,129.61,14.83746071]
[1744561474725,19.8983253,129.66,129.6,7.7159]
[1744561474907,19.8983253,129.66,129.61,12.1856253]
[1744561475392,7.7127,129.66,129.62,12.1856253]
[1744561476329,15.0112,129.68,129.64,12.1856253]
[1744561476617,19.07613357,129.67,129.61,7.7153]
[1744561476818,12.1856253,129.66,129.61,19.9009253]
[1744561477028,18.64964886,129.67,129.63,12.1856253]
[1744561477324,30.83527416,129.67,129.62,12.1856253]
[1744561477537,38.54747416,129.67,129.62,19.9004253]
[1744561477818,38.54747416,129.67,129.62,12.1856253]
[1744561478014,12.61211001,129.66,129.58,1.6485]
[1744561478214,12.61211001,129.66,129.61,12.1856253]
[1744561478420,108.76184886,129.67,129.59,7.7166]
[1744561478421,7.7122,129.67,129.59,7.7166]
[1744561478618,19.8978253,129.67,129.62,12.1856253]
[1744561479002,12.1856253,129.66,129.61,12.1856253]
[1744561479504,12.1856253,129.64,129.58,1.6485]
[1744561479710,12.1856253,129.63,129.58,12.1856253]
[1744561479911,12.1856253,129.63,129.59,2.6510392]
[1744561480402,12.1856253,129.64,129.59,14.8366645]
[1744561480609,7.7136,129.64,129.6,12.1856253]
[1744561481331,26.36254886,129.66,129.63,12.1856253]
[1744561481701,26.36254886,129.66,129.62,12.1856253]
[1744561482839,26.36254886,129.66,129.61,12.1856253]
[1744561483000,31.26175887,129.65,129.6,12.1856253]
[1744561483329,19.46706994,129.65,129.57,27.0123]
[1744561483499,19.46706994,129.65,129.59,19.04058523]
[1744561483812,18.64964886,129.64,129.59,19.04058523]
[1744561484014,37.69023409,129.64,129.59,19.04058523]
[1744561484617,7.7142,129.63,129.59,19.04058523]
[1744561485010,19.04058523,129.62,129.57,19.04058523]
[1744561485206,9.3128,129.63,129.56,26.75898523]
[1744561485207,19.04058523,129.61,129.56,26.75898523]
[1744561485526,19.04058523,129.61,129.57,2.64959285]
[1744561486330,19.1827468,129.6,129.57,2.64959285]
[1744561486502,19.1827468,129.6,129.55,26.75958523]
[1744561486705,26.36544886,129.61,129.57,19.04058523]
[1744561488134,1.5986,129.63,129.6,19.04058523]
[1744561488326,96.7224,129.65,129.61,19.04058523]
[1744561488737,96.7224,129.65,129.62,19.04058523]
[1744561491843,16.6106,129.67,129.62,26.75528523]
[1744561492049,16.6106,129.67,129.63,19.04058523]
[1744561492669,19.07613357,129.66,129.62,19.04058523]
[1744561492849,19.07613357,129.66,129.63,19.04058523]
[1744561493353,16.6106,129.67,129.63,19.04058523]
[1744561493763,16.6106,129.67,129.6,7.7157]
[1744561493947,26.78893357,129.66,129.62,19.04058523]
[1744561494767,21.3527,129.68,129.64,19.04058523]
[1744561495356,14.0527,129.68,129.64,19.04058523]
[1744561498564,6.3412,129.68,129.64,26.75408523]
[1744561498765,14.0525,129.68,129.64,19.04058523]
[1744561499465,14.0525,129.68,129.64,26.75398523]
[1744561500160,7.7113,129.68,129.65,19.04058523]
[1744561501346,7.7113,129.68,129.64,19.04058523]
[1744561502167,8.13738471,129.69,129.66,19.04058523]
[1744561502354,26.78703357,129.69,129.65,19.04058523]
[1744561502759,25.78703357,129.69,129.65,19.04058523]
[1744561504754,90.1096,129.71,129.68,19.04058523]
[1744561505142,90.1096,129.71,129.67,12.17124154]
[1744561506049,90.1096,129.71,129.68,12.17124154]
[1744561506244,1.6159,129.73,129.69,12.17124154]
[1744561506466,18.64964886,129.74,129.72,12.17124154]
[1744561506647,0.03,129.75,129.69,1.5826]
[1744561506849,0.03,129.75,129.74,12.17124154]
[1744561508354,0.03,129.75,129.74,19.87894154]
[1744561509143,0.03,129.75,129.74,26.70260773]
[1744561509364,0.03,129.75,129.74,7.7077]
[1744561509543,0.03,129.75,129.71,19.2735]
[1744561509544,0.03,129.75,129.69,1.5826]
[1744561509753,0.03,129.75,129.72,18.99490773]
[1744561509956,0.03,129.75,129.73,18.99490773]
[1744561510149,0.03,129.75,129.72,7.7086]
[1744561510357,0.03,129.75,129.74,18.99490773]
[1744561511358,0.03,129.75,129.72,7.7086]
[1744561511561,0.03,129.75,129.72,18.99490773]
[1744561511877,0.03,129.75,129.7,7.7101]
[1744561512174,0.03,129.75,129.73,18.99490773]
[1744561512776,0.03,129.75,129.74,18.99490773]
[1744561513481,0.03,129.75,129.7,26.9853]
[1744561513656,0.03,129.75,129.74,18.99490773]
[1744561514063,0.03,129.75,129.74,26.70260773]
[1744561515255,2.7581664,129.79,129.74,71.6973386]
[1744561515460,2.7581664,129.79,129.78,18.99490773]
[1744561515758,2.7581664,129.79,129.77,18.99490773]
[1744561515961,2.7581664,129.79,129.76,26.70140773]
[1744561516182,2.7581664,129.79,129.77,18.99490773]
[1744561516675,2.7581664,129.79,129.76,26.70140773]
[1744561516972,2.7581664,129.79,129.75,7.707]
[1744561517151,21.75307413,129.79,129.74,26.70240773]
[1744561517350,2.7581664,129.79,129.74,26.70240773]
[1744561517591,2.7581664,129.79,129.75,18.99490773]
[1744561517947,2.7581664,129.79,129.74,7.7075]
[1744561518152,2.7581664,129.79,129.76,18.99490773]
[1744561519583,2.7581664,129.79,129.74,7.7075]
[1744561519770,2.7581664,129.79,129.77,26.0]
[1744561520080,2.7581664,129.79,129.78,7.7053]
[1744561520674,2.7581664,129.79,129.76,7.7063]
[1744561520875,2.7581664,129.79,129.76,26.70120773]
[1744561521080,2.7581664,129.79,129.77,18.99490773]
[1744561521383,2.7581664,129.79,129.76,7.7063]
[1744561521583,2.7581664,129.79,129.77,18.99490773]
[1744561522171,2.7581664,129.79,129.78,18.99490773]
[1744561522764,2.7581664,129.79,129.76,26.70120773]
[1744561522963,2.7581664,129.79,129.74,7.7072]
[1744561523169,2.7581664,129.79,129.75,18.99490773]
[1744561523375,2.7581664,129.79,129.76,18.99490773]
[1744561524087,2.7581664,129.79,129.78,18.99490773]
[1744561524963,2.7581664,129.79,129.77,7.7057]
[1744561525185,2.7581664,129.79,129.78,18.99490773]
[1744561525490,2.7581664,129.79,129.77,18.99490773]
[1744561526168,2.7581664,129.79,129.78,18.99490773]
[1744561526689,2.7581664,129.79,129.77,18.99490773]
[1744561526883,2.7581664,129.79,129.75,82.6]
[1744561527088,2.7581664,129.79,129.78,18.99490773]
[1744561527297,2.7581664,129.79,129.78,44.99490773]
[1744561527471,2.7581664,129.79,129.78,52.98453087]
[1744561527661,2.7581664,129.79,129.78,52.70020773]
[1744561528286,2.7581664,129.79,129.74,26.977]
[1744561528470,2.7581664,129.79,129.77,18.99490773]
[1744561528677,2.7581664,129.79,129.78,18.99490773]
[1744561529386,2.7581664,129.79,129.78,26.70020773]
[1744561530378,2.7581664,129.79,129.78,7.7053]
[1744561530581,2.7581664,129.79,129.78,26.70020773]
[1744561534199,0.03,129.82,129.8,0.28432314]
[1744561534404,0.03,129.82,129.81,18.99490773]
[1744561534585,38.26750773,129.92,129.82,26.86611043]
[1744561534586,0.03,129.92,129.82,26.86611043]
[1744561534786,0.03,129.92,129.85,0.28432314]
[1744561534985,0.03,129.92,129.88,18.99490773]
[1744561535187,0.03,129.92,129.85,0.28432314]
[1744561535409,18.99490773,129.9,129.85,18.99490773]
[1744561536011,5.0067314,129.92,129.86,18.99490773]
[1744561536210,24.00163913,129.92,129.87,18.99490773]
[1744561536408,5.0067314,129.92,129.89,18.99490773]
[1744561536712,5.0067314,129.92,129.9,18.99490773]
[1744561537083,5.0067314,129.92,129.91,18.99490773]
[1744561537288,5.0067314,129.92,129.89,26.9458]
[1744561537503,5.0067314,129.92,129.91,18.99490773]
[1744561537699,5.0067314,129.92,129.9,18.99490773]
[1744561538015,5.0067314,129.92,129.89,26.9458]
[1744561538196,5.0067314,129.92,129.9,18.99490773]
[1744561538904,5.0067314,129.92,129.91,18.99490773]
[1744561539107,5.0067314,129.92,129.9,18.99490773]
[1744561539303,5.0067314,129.92,129.89,26.69370773]
[1744561539504,5.0067314,129.92,129.88,7.6993]
[1744561539705,24.00163913,129.92,129.88,7.6993]
[1744561539918,31.69873913,129.92,129.87,35.45460773]
[1744561540105,18.99490773,129.91,129.86,26.69510773]
[1744561540313,24.00163913,129.92,129.87,18.99490773]
[1744561540615,5.0067314,129.92,129.88,18.99490773]
[1744561540814,18.99490773,129.9,129.84,26.69660773]
[1744561541113,18.99490773,129.9,129.84,7.7017]
[1744561541313,1.5509,129.91,129.84,7.7017]
[1744561541518,18.99490773,129.88,129.84,7.7017]
[1744561541725,18.99490773,129.89,129.84,26.69660773]
[1744561542293,18.99490773,129.89,129.84,18.99490773]
[1744561542505,18.99490773,129.87,129.8,372.5209]
[1744561542700,18.99490773,129.87,129.82,18.99490773]
[1744561542900,7.6985,129.9,129.81,26.69840773]
[1744561542901,18.99490773,129.86,129.81,26.69840773]
[1744561543306,26.944,129.9,129.81,7.7035]
[1744561543503,7.6985,129.9,129.85,18.99490773]
[1744561543823,18.99490773,129.87,129.82,18.99490773]
[1744561544018,18.64964886,129.89,129.81,26.69840773]
[1744561544319,18.99490773,129.86,129.81,26.69840773]
[1744561544618,18.99490773,129.86,129.8,26.69880773]
[1744561544835,18.64964886,129.89,129.82,18.99490773]
[1744561545017,18.99490773,129.87,129.81,18.99490773]
[1744561545317,18.64964886,129.89,129.8,7.7039]
[1744561545318,26.69620773,129.85,129.8,26.69880773]
[1744561545702,18.99490773,129.85,129.8,26.69880773]
[1744561545909,26.69570773,129.86,129.8,26.69880773]
[1744561546104,18.99490773,129.89,129.83,18.99490773]
[1744561546306,18.99490773,129.87,129.8,90.3039]
[1744561546498,18.99490773,129.87,129.81,18.99490773]
[1744561546700,18.99490773,129.86,129.81,18.99490773]
[1744561547201,7.6991,129.89,129.83,18.99490773]
[1744561547409,26.69440773,129.88,129.83,26.69710773]
[1744561547603,7.699,129.89,129.85,18.99490773]
[1744561548309,28.24390773,129.91,129.86,18.99490773]
[1744561549625,28.24390773,129.91,129.83,7.7023]
[1744561549834,28.24390773,129.91,129.84,18.99490773]
[1744561549835,18.99490773,129.89,129.84,18.99490773]
[1744561550509,4.9767314,129.89,129.84,18.99490773]
[1744561550713,4.9767314,129.89,129.84,26.69620773]
[1744561551031,4.9767314,129.89,129.85,18.99490773]
[1744561551397,4.9767314,129.89,129.87,18.99490773]
[1744561551818,4.9767314,129.89,129.85,18.99490773]
[1744561552022,4.9767314,129.89,129.84,7.7013]
[1744561552323,4.9767314,129.89,129.85,18.99490773]
[1744561552628,12.6756314,129.89,129.85,18.99490773]
[1744561552814,12.6756314,129.89,129.84,7.7013]
[1744561552815,31.67053913,129.89,129.83,26.69710773]
[1744561553209,31.67053913,129.89,129.84,18.99490773]
[1744561554104,31.67053913,129.89,129.83,7.7022]
[1744561554404,31.67053913,129.89,129.84,18.99490773]
[1744561554812,31.67053913,129.89,129.83,7.7022]
[1744561555012,18.99490773,129.86,129.81,7.7035]
[1744561555226,18.99490773,129.86,129.81,26.69840773]
[1744561555428,18.99490773,129.86,129.8,7.7038]
[1744561555609,18.99490773,129.86,129.8,26.69870773]
[1744561555933,26.69720773,129.84,129.79,9.08]
[1744561556403,18.99490773,129.82,129.78,7.705]
[1744561556813,18.99490773,129.81,129.75,18.99490773]
[1744561557018,18.99490773,129.8,129.74,7.7077]
[1744561557218,30.39444465,129.79,129.73,17.1081]
[1744561557416,30.39444465,129.79,129.74,30.39444465]
[1744561557616,7.7252,129.83,129.78,30.39444465]
[1744561557833,30.39444465,129.82,129.76,30.39444465]
[1744561558017,30.39444465,129.8,129.75,30.39444465]
[1744561558217,7.7031,129.82,129.77,30.39444465]
[1744561558421,30.39444465,129.8,129.74,7.7073]
[1744561558632,30.39444465,129.81,129.76,30.39444465]
[1744561559518,30.39444465,129.81,129.76,38.10084465]
[1744561559936,30.39444465,129.8,129.75,38.10124465]
[1744561560320,30.39444465,129.8,129.74,7.7075]
[1744561560522,30.39444465,129.79,129.74,38.10194465]
[1744561561223,7.7036,129.81,129.75,30.39444465]
[1744561561425,30.39444465,129.8,129.75,38.10134465]
[1744561562225,7.7031,129.82,129.75,7.7069]
[1744561562433,146.87189351,129.83,129.78,30.39444465]
[1744561562627,30.39444465,129.82,129.75,7.7069]
[1744561562832,30.39444465,129.82,129.77,30.39444465]
[1744561563031,30.39444465,129.82,129.76,30.39444465]
[1744561563339,38.09774465,129.82,129.76,38.10044465]
[1744561563635,30.39444465,129.81,129.76,38.10044465]
[1744561563831,30.39444465,129.82,129.76,38.10044465]
[1744561564028,120.51964465,129.83,129.77,30.39444465]
[1744561564231,7.7252,129.83,129.79,30.39444465]
[1744561564641,38.11964465,129.83,129.76,26.9723]
[1744561564840,7.7252,129.83,129.76,26.9723]
[1744561565047,38.11964465,129.83,129.78,30.39444465]
[1744561565345,7.7252,129.83,129.76,26.9723]
[1744561565522,30.39444465,129.83,129.79,7.7047]
[1744561565721,35.37117605,129.83,129.79,7.7047]
[1744561565940,35.37117605,129.83,129.78,7.705]
[1744561566142,30.39444465,129.82,129.78,7.705]
[1744561566744,30.39444465,129.82,129.77,30.39444465]
[1744561566940,35.37117605,129.83,129.77,30.39444465]
[1744561567439,43.07357605,129.83,129.78,7.7053]
[1744561567643,43.07357605,129.83,129.74,82.6]
[1744561567644,30.39444465,129.81,129.74,82.6]
[1744561567935,30.39444465,129.81,129.76,30.39444465]
[1744561568525,30.39444465,129.8,129.75,38.10154465]
[1744561569137,30.39444465,129.8,129.75,7.7071]
[1744561569519,30.39444465,129.78,129.72,7.7089]
[1744561569725,30.39444465,129.77,129.72,38.10334465]
[1744561569924,30.39444465,129.78,129.72,7.7089]
[1744561570139,30.39444465,129.78,129.72,38.10334465]
[1744561570522,30.39444465,129.77,129.72,38.10334465]
[1744561571941,1.592,129.81,129.76,30.39444465]
[1744561572149,31.98644465,129.81,129.76,30.39444465]
[1744561572642,30.39444465,129.8,129.76,30.39444465]
[1744561573228,1.592,129.81,129.73,0.28432314]
[1744561573429,39.69004465,129.81,129.76,30.39444465]
[1744561573721,31.98644465,129.81,129.76,30.39444465]
[1744561574044,9.2956,129.81,129.77,30.39444465]
[1744561574345,1.592,129.81,129.77,38.10034465]
[1744561574743,30.39444465,129.82,129.77,7.7059]
[1744561575049,30.39444465,129.79,129.73,82.6]
[1744561575230,0.14216157,129.81,129.71,7.7095]
[1744561575550,30.39444465,129.78,129.71,7.7095]
[1744561575730,30.39444465,129.78,129.72,30.39444465]
[1744561576128,19.2608,129.8,129.73,30.39444465]
[1744561576329,30.39444465,129.78,129.73,30.39444465]
[1744561577149,38.10034465,129.77,129.72,30.39444465]
[1744561577852,7.7059,129.77,129.73,30.39444465]
[1744561578146,38.09994465,129.78,129.73,30.39444465]
[1744561579154,19.00173459,129.78,129.73,19.00173459]
[1744561580132,7.7059,129.77,129.7,6.7024]
[1744561580332,26.70763459,129.77,129.72,19.00173459]
[1744561580746,28.98919619,129.77,129.72,19.00173459]
[1744561581630,19.00173459,129.75,129.7,23.6722]
[1744561581853,19.00173459,129.75,129.71,19.00173459]
[1744561582054,19.00173459,129.76,129.71,19.00173459]
[1744561582633,19.00173459,129.75,129.71,19.00173459]
[1744561582832,26.70893459,129.75,129.71,19.00173459]
[1744561583048,7.7072,129.75,129.71,19.00173459]
[1744561583842,7.7072,129.75,129.7,17.0328]
[1744561584039,19.00173459,129.73,129.7,0.063]
[1744561584240,19.00173459,129.72,129.7,0.063]
[1744561584442,19.00173459,129.71,129.7,0.063]
[1744561584958,26.71123459,129.71,129.7,0.063]
[1744561589456,18.64964886,129.7,129.69,0.063]
[1744561589658,37.65138345,129.7,129.63,0.063]
[1744561589964,101.04964886,129.7,129.63,0.063]
[1744561590166,19.00173459,129.67,129.63,0.063]
[1744561590366,19.00173459,129.66,129.63,0.063]
[1744561590740,19.00173459,129.64,129.63,0.063]
[1744561590958,7.7136,129.64,129.63,0.063]
[1744561592239,7.7133,129.65,129.63,0.063]
[1744561592640,26.71503459,129.65,129.63,0.063]
[1744561593966,26.71533459,129.64,129.63,0.063]
[1744561594975,45.79146816,129.64,129.63,0.063]
[1744561595870,48.07302976,129.64,129.63,0.063]
[1744561600454,26.42648471,129.62,129.61,0.063]
[1744561600681,45.4282193,129.62,129.61,0.063]
[1744561602177,53.1430193,129.62,129.61,0.063]
[1744561603172,71.79266816,129.62,129.61,0.063]
[1744561603377,73.36376816,129.62,129.61,0.0001]
[1744561603559,19.07613357,129.59,129.58,0.063]
[1744561603753,38.07786816,129.59,129.58,0.063]
[1744561604683,26.36624886,129.59,129.58,0.063]
[1744561605183,7.7162,129.6,129.58,0.063]
[1744561606686,7.7149,129.62,129.58,0.063]
[1744561606982,7.7149,129.62,129.58,19.06473459]
[1744561608580,7.7149,129.62,129.58,26.78183459]
[1744561608897,7.7149,129.62,129.58,19.06473459]
[1744561610296,26.71663459,129.62,129.58,0.063]
[1744561610596,19.00173459,129.61,129.58,0.063]
[1744561611190,21.28329619,129.61,129.58,0.063]
[1744561611590,2.2815616,129.61,129.58,0.063]
[1744561612385,9.9970616,129.61,129.58,0.063]
[1744561612585,9.9970616,129.61,129.58,19.06473459]
[1744561613179,9.9970616,129.61,129.58,0.063]
[1744561614313,2.2815616,129.61,129.58,0.063]
[1744561614482,9.9971616,129.61,129.58,0.063]
[1744561617006,2.2815616,129.61,129.58,0.063]
[1744561617500,9.9970616,129.61,129.58,0.063]
[1744561620202,2.2815616,129.61,129.58,0.063]
[1744561620395,2.2815616,129.61,129.6,19.00173459]
[1744561620904,2.2815616,129.61,129.6,20.63993459]
[1744561621286,0.6149616,129.61,129.6,65.14260275]
[1744561621683,0.6149616,129.61,129.6,46.35079232]
[1744561621983,0.6149616,129.61,129.6,27.06473459]
[1744561623091,0.6149616,129.61,129.6,34.78073459]
[1744561623999,0.6149616,129.61,129.6,35.06505773]
[1744561624206,6.16e-05,129.61,129.6,155.45860275]
[1744561625287,6.16e-05,129.61,129.6,136.45686816]
[1744561625896,6.16e-05,129.61,129.6,155.45860275]
[1744561626808,1.6446,129.71,129.63,26.0]
[1744561626989,0.03,129.68,129.67,19.00173459]
[1744561627390,0.03,129.68,129.66,19.00173459]
[1744561627792,0.03,129.68,129.67,19.00173459]
[1744561628000,0.03,129.68,129.66,26.71373459]
[1744561628400,0.03,129.68,129.67,19.00173459]
[1744561629289,0.03,129.68,129.67,26.71353459]
[1744561629597,0.03,129.68,129.65,26.71473459]
[1744561630209,0.03,129.68,129.66,19.00173459]
[1744561630408,0.03,129.68,129.67,19.00173459]
[1744561630606,0.03,129.68,129.67,26.71353459]
[1744561630917,0.03,129.68,129.66,26.71393459]
[1744561631114,0.03,129.68,129.67,19.00173459]
[1744561631520,0.03,129.68,129.66,7.7122]
[1744561631814,0.03,129.68,129.67,19.00173459]
[1744561632710,0.03,129.68,129.67,26.71353459]
[1744561632917,0.03,129.68,129.67,53.42344502]
[1744561633298,0.03,129.68,129.67,56.03647212]
[1744561634696,0.03,129.75,129.68,19.07613357]
[1744561635020,19.03173459,129.75,129.7,19.00173459]
[1744561635801,19.03173459,129.75,129.69,8.7]
[1744561636121,19.03173459,129.75,129.7,7.7096]
[1744561636421,19.00173459,129.73,129.69,7.7104]
[1744561636635,19.00173459,129.7,129.67,7.7116]
[1744561636791,19.00173459,129.7,129.66,7.7122]
[1744561637124,19.00173459,129.71,129.66,26.71393459]
[1744561638013,7.7094,129.72,129.66,26.71393459]
[1744561638322,19.00173459,129.71,129.66,26.71393459]
[1744561640038,26.71123459,129.71,129.66,26.71393459]
[1744561641335,19.00173459,129.71,129.66,26.71393459]
[1744561641833,19.00173459,129.71,129.64,7.6704]
[1744561642037,19.00173459,129.71,129.63,27.70173459]
[1744561642038,19.00173459,129.68,129.63,27.70173459]
[1744561642247,19.00173459,129.68,129.63,16.414]
[1744561642538,19.00173459,129.67,129.62,7.7147]
[1744561642721,19.00173459,129.65,129.6,26.62443459]
[1744561642933,19.00173459,129.65,129.6,19.00173459]
[1744561643237,19.00173459,129.66,129.61,19.00173459]
[1744561643433,7.7122,129.67,129.62,26.71653459]
[1744561643639,19.00173459,129.67,129.62,26.71653459]
[1744561644335,19.00173459,129.67,129.62,7.7148]
[1744561644512,19.00173459,129.66,129.62,7.7148]
[1744561644713,19.00173459,129.66,129.61,26.71683459]
[1744561645538,26.71423459,129.66,129.6,7.7157]
[1744561645740,19.00173459,129.65,129.6,26.71743459]
[1744561645944,19.00173459,129.65,129.59,27.70173459]
[1744561646143,19.00173459,129.63,129.59,8.7]
[1744561646323,19.00173459,129.63,129.58,7.7797]
[1744561646521,26.71623459,129.63,129.58,26.78143459]
[1744561648840,19.00173459,129.62,129.58,0.063]
[1744561649220,26.71623459,129.63,129.58,26.78193459]
[1744561650342,26.71623459,129.63,129.58,7.7802]
[1744561650518,26.71623459,129.63,129.58,26.78193459]
[1744561651244,7.713,129.65,129.59,19.00173459]
[1744561651431,19.00173459,129.64,129.59,19.00173459]
[1744561651629,26.36264886,129.65,129.59,19.00173459]
[1744561651817,19.00173459,129.64,129.59,19.00173459]
[1744561652844,7.7126,129.66,129.6,19.00173459]
[1744561653020,26.71433459,129.66,129.6,19.00173459]
[1744561653348,19.00173459,129.65,129.6,19.00173459]
[1744561653725,26.71503459,129.65,129.6,26.71753459]
[1744561654931,26.71423459,129.66,129.6,26.71753459]